[Event "51st Rilton Cup 2023-24"]
[Site "Stockholm"]
[Date "2023.12.29"]
[Round "3.21"]
[White "Kavutskiy, Konstantin"]
[Black "Kunz, Andre"]
[Result "1/2-1/2"]
[ECO "B12"]
[WhiteElo "2384"]
[BlackElo "2191"]
[Annotator "ChessBase"]
[PlyCount "139"]
[EventDate "2023.12.27"]
[EventType "swiss"]
[EventCountry "SWE"]
[SourceTitle "playchess.com"]
[Source "ChessBase"]
[SourceQuality "1"]
[TimeControl "40/5400+30:1800+30"]

1. e4 {[%emt 0:00:13]} c6 {[%emt 0:01:23]} 2. d4 {[%emt 0:01:37]} d5 {[%emt 0:00:06]} 3. e5 {[%emt 0:00:12]} c5 {[%emt 0:00:29]} 4. Nf3 {[%emt 0:00:17]} cxd4 {[%emt 0:02:45]} 5. Nxd4 {[%emt 0:00:09]} Nc6 {[%emt 0:01:06]} 6. Nxc6 {[%emt 0:00:10]} bxc6 {[%emt 0:00:05]} 7. Bd3 {[%emt 0:00:08]} g6 {[%emt 0:03:22]} 8. O-O {[%emt 0:04:56]} Bg7 {[%emt 0:01:38]} 9. Re1 {[%emt 0:08:46]} Nh6 {[%emt 0:06:10]} 10. c4 {[%emt 0:00:37]} O-O {[%emt 0:08:52]} 11. Bf4 {[%emt 0:11:02]} Qb6 {[%emt 0:10:53]} 12. Qd2 {[%emt 0:06:20]} dxc4 {[%emt 0:07:12]} 13. Bxc4 {[%emt 0:01:36]} Rd8 {[%emt 0:01:10]} 14. Qc1 {[%emt 0:17:19]} Ng4 {[%emt 0:14:44]} 15. Bg3 {[%emt 0:00:42]} Qd4 {[%emt 0:05:01]} 16. Qc3 {[%emt 0:06:07]} Bf5 {[%emt 0:20:05]} 17. h3 {[%emt 0:07:54]} Nh6 {[%emt 0:01:35]} 18. Qxd4 {[%emt 0:03:36]} Rxd4 {[%emt 0:00:02]} 19. Na3 {[%emt 0:00:36]} e6 {[%emt 0:03:02]} 20. Bf1 {[%emt 0:05:22]} Bd3 {[%emt 0:02:07]} 21. Red1 {[%emt 0:06:07]} Rad8 {[%emt 0:00:11]} 22. Bxd3 {[%emt 0:00:06]} Rxd3 {[%emt 0:00:04]} 23. Rxd3 {[%emt 0:00:04]} Rxd3 {[%emt 0:00:04]} 24. Rc1 {[%emt 0:00:08]} g5 {[%emt 0:03:44]} 25. Rxc6 {[%emt 0:00:44]} Nf5 {[%emt 0:00:11]} 26. Rc8+ {[%emt 0:00:12]} Bf8 {[%emt 0:00:09]} 27. Kh2 {[%emt 0:03:06]} Nxg3 {[%emt 0:02:12]} 28. fxg3 {[%emt 0:00:07]} Kg7 {[%emt 0:00:12]} 29. Nc4 {[%emt 0:00:34]} Bb4 {[%emt 0:00:41]} 30. Kg1 {[%emt 0:06:35]} Rxg3 {[%emt 0:01:18]} 31. a3 {[%emt 0:02:04]} Bf8 {[%emt 0:01:03]} 32. Rc7 {[%emt 0:02:29]} Rd3 {[%emt 0:00:38]} 33. Kf1 {[%emt 0:00:08]} h5 {[%emt 0:02:11]} 34. Rxa7 {[%emt 0:01:33]} Rd1+ {[%emt 0:00:50]} 35. Ke2 {[%emt 0:01:15]} Rg1 {[%emt 0:00:35]} 36. Kf3 {[%emt 0:01:38]} Rf1+ {[%emt 0:00:44]} 37. Ke2 {[%emt 0:00:14]} Rg1 {[%emt 0:02:24]} 38. g4 {[%emt 0:02:22]} hxg4 {[%emt 0:00:00]} 39. hxg4 {[%emt 0:00:04]} Rxg4 {[%emt 0:00:00]} 40. Rc7 {[%emt 0:00:06]} Kg6 {[%emt 0:00:48]} 41. b4 {[%emt 0:09:43]} Rg3 {[%emt 0:15:32]} 42. b5 {[%emt 0:03:06]} Bxa3 {[%emt 0:04:48]} 43. b6 {[%emt 0:00:12]} Rb3 {[%emt 0:00:18]} 44. b7 {[%emt 0:00:34]} Bb2 {[%emt 0:00:36]} 45. Rd7 {[%emt 0:09:13]} f6 {[%emt 0:02:23]} 46. exf6 {[%emt 0:02:42]} Kxf6 {[%emt 0:00:08]} 47. Nd2 {[%emt 0:02:56]} Rb4 {[%emt 0:01:16]} 48. Kd3 {[%emt 0:01:10]} Be5 {[%emt 0:02:22]} 49. Ne4+ {[%emt 0:01:05]} Kg6 {[%emt 0:01:13]} 50. Re7 {[%emt 0:00:29]} g4 {[%emt 0:02:35]} 51. Rxe6+ {[%emt 0:00:55]} Kf5 {[%emt 0:00:48]} 52. Re7 {[%emt 0:00:04]} g3 {[%emt 0:01:26]} 53. Rxe5+ {[%emt 0:01:27]} Kxe5 {[%emt 0:00:15]} 54. Nxg3 {[%emt 0:00:03]} Rxb7 {[%emt 0:00:28]} 55. Ne2 {[%emt 0:00:17]} Rh7 {[%emt 0:00:51]} 56. Nc3 {[%emt 0:00:18]} Rh4 {[%emt 0:00:16]} 57. Ne2 {[%emt 0:00:28]} Rh3+ {[%emt 0:00:25]} 58. Kc4 {[%emt 0:00:27]} Rh1 {[%emt 0:01:07]} 59. Kd3 {[%emt 0:00:27]} Rd1+ {[%emt 0:00:32]} 60. Kc4 {[%emt 0:00:55]} Rd2 {[%emt 0:00:41]} 61. Nc3 {[%emt 0:00:19]} Rd4+ {[%emt 0:00:33]} 62. Kc5 {[%emt 0:00:31]} Rh4 {[%emt 0:00:18]} 63. Nb5 {[%emt 0:00:16]} Rh1 {[%emt 0:00:48]} 64. Kc4 {[%emt 0:00:10]} Rc1+ {[%emt 0:00:42]} 65. Nc3 {[%emt 0:00:10]} Rh1 {[%emt 0:00:37]} 66. Kd3 {[%emt 0:00:27]} Rh4 {[%emt 0:00:34]} 67. Ne2 {[%emt 0:00:42]} Rh3+ {[%emt 0:00:32]} 68. Kc4 {[%emt 0:00:16]} Re3 {[%emt 0:00:37]} 69. Nc3 {[%emt 0:00:13]} Rxc3+ {[%emt 0:00:11]} 70. Kxc3 {[%emt 0:00:38]} 1/2-1/2

[Event "51st Rilton Cup 2023-24"]
[Site "Stockholm"]
[Date "2023.12.30"]
[Round "4.1"]
[White "Chasin, Nico"]
[Black "Kulaots, Kaido"]
[Result "1/2-1/2"]
[ECO "D38"]
[WhiteElo "2444"]
[BlackElo "2524"]
[Annotator "TA"]
[PlyCount "63"]
[EventDate "2023.12.27"]
[EventType "swiss"]
[EventCountry "SWE"]
[SourceTitle "playchess.com"]
[Source "ChessBase"]
[SourceQuality "1"]
[TimeControl "40/5400+30:1800+30"]

{[%evp 12,63,11,11,4,14,33,28,33,10,14,7,0,0,0,10,11,0,0,0,0,0,0,0,0,0,0,-18,0,0,0,0,0,0,0,0,0,-4,0,0,0,0,0,0,0,0,0,0,0,0,0,0,0,0]} 1. d4 {[%emt 0:08:38]} Nf6 {[%emt 0:00:08]} 2. c4 {[%emt 0:01:17]} e6 {[%emt 0:00:17]} 3. Nf3 {[%emt 0:00:08]} d5 {[%emt 0:00:05]} 4. Nc3 {[%emt 0:00:05]} Bb4 {[%emt 0:00:28]} 5. Qa4+ {[%emt 0:00:06]} Nc6 {[%emt 0:00:04]} 6. e3 {[%emt 0:00:06]} O-O {[%emt 0:01:28]} 7. Bd2 {[%emt 0:00:47]} dxc4 {[%emt 0:03:59] D38: Queen's Gambit Declined: Ragozin Defence (4 Nf3 Bb4).} 8. Bxc4 {[%emt 0:00:44]} Bd6 {[%emt 0:00:07]} 9. Qc2 {[%emt 0:00:05]} e5 {[%emt 0:00:18] White has an edge.} 10. dxe5 {[%emt 0:00:10]} Nxe5 {[%emt 0:00:04] The position is equal.} 11. Nxe5 {[%emt 0:00:04]} Bxe5 {[%emt 0:00:06]} 12. f4 {[%emt 0:00:03]} Bxc3 {[%emt 0:02:32]} 13. Bxc3 {[%emt 0:00:06]} g6 {[%emt 0:00:06]} 14. Rd1 {[%emt 0:34:00]} Qe7 {[%emt 0:00:46]} 15. Bxf6 {[%emt 0:01:49]} Qxf6 {[%emt 0:00:17]} 16. O-O {[%emt 0:00:04] [#]} Be6 $146 {[%emt 0:09:10]} ({Predecessor:} 16... Bg4 17. Rde1 Rad8 18. h3 Bd7 19. e4 Qd4+ 20. Kh2 Bc6 21. Re2 Kg7 22. Rf3 Rfe8 {0-1 Lim,Z (2318)-Pechac,J (2594) Olympiad-44 Chennai 2022 (2.1)}) 17. Bxe6 {[%emt 0:00:56]} Qxe6 {[%emt 0:00:14]} 18. Qxc7 {[%emt 0:01:19]} Qxe3+ {[%emt 0:04:30]} 19. Kh1 {[%emt 0:01:35]} Rac8 {[%emt 0:01:03]} 20. Qxb7 {[%emt 0:00:44]} Rb8 {[%emt 0:00:26]} 21. Qf3 {[%emt 0:00:06]} Qxf3 {[%emt 0:00:13]} 22. Rxf3 {[%emt 0:00:13]} Rxb2 $11 {[%emt 0:00:07][%mdl 4096] Endgame KRR-KRR} 23. Ra3 {[%emt 0:00:02]} Rc8 {[%emt 0:00:53] Threatening ...Rcc2.} 24. Rxa7 {[%emt 0:01:12]} Rcc2 {[%emt 0:02:09][%csl LRa2,LRg2]} 25. Rg1 {[%emt 0:00:05]} Rf2 {[%emt 0:00:35]} 26. Ra4 {[%emt 0:00:35]} Rxa2 {[%emt 0:01:17]} 27. Rxa2 {[%emt 0:00:06]} Rxa2 {[%emt 0:00:03] KR-KR} 28. Rf1 {[%emt 0:00:26]} Kg7 {[%emt 0:00:08]} 29. h4 {[%emt 0:00:47]} Kf6 {[%emt 0:00:13]} 30. Kh2 {[%emt 0:00:07]} Kf5 {[%emt 0:00:08]} 31. Kh3 {[%emt 0:00:06]} Ra3+ {[%emt 0:00:11]} 32. g3 {[%emt 0:00:06] Weighted Error Value: White=0.01 (flawless) /Black=0.03 (flawless)} 1/2-1/2

[Event "51st Rilton Cup 2023-24"]
[Site "Stockholm"]
[Date "2023.12.30"]
[Round "4.2"]
[White "Prraneeth Vuppala"]
[Black "Parkhov, Yair"]
[Result "1/2-1/2"]
[ECO "B92"]
[WhiteElo "2515"]
[BlackElo "2495"]
[Annotator "TA"]
[PlyCount "79"]
[EventDate "2023.12.27"]
[EventType "swiss"]
[EventCountry "SWE"]
[SourceTitle "playchess.com"]
[Source "ChessBase"]
[SourceQuality "1"]
[TimeControl "40/5400+30:1800+30"]

{[%evp 24,79,6,10,5,17,38,29,31,8,16,-9,52,62,55,42,46,30,23,29,70,67,81,74,87,87,87,87,87,73,87,69,69,69,73,0,0,0,0,0,0,0,0,0,0,0,0,0,0,0,0,0,0,0,0,0,0,0]} 1. e4 {[%emt 0:05:43]} c5 {[%emt 0:00:22]} 2. Nf3 {[%emt 0:00:46]} d6 {[%emt 0:00:05]} 3. d4 {[%emt 0:00:10]} cxd4 {[%emt 0:00:07]} 4. Nxd4 {[%emt 0:00:04]} Nf6 {[%emt 0:00:09]} 5. Nc3 {[%emt 0:00:04]} a6 {[%emt 0:00:04]} 6. Be2 {[%emt 0:00:51]} e5 {[%emt 0:00:21]} 7. Nb3 {[%emt 0:00:09]} Be7 {[%emt 0:00:05]} 8. Be3 {[%emt 0:00:29]} Be6 {[%emt 0:00:07]} 9. Nd5 {[%emt 0:01:08]} Nbd7 {[%emt 0:00:07]} 10. Qd3 {[%emt 0:00:09]} Bxd5 {[%emt 0:00:12]} 11. exd5 {[%emt 0:00:07]} Rc8 {[%emt 0:00:05]} 12. c4 {[%emt 0:01:07]} O-O {[%emt 0:00:17]} 13. O-O {[%emt 0:00:22]} a5 {[%emt 0:01:41] B92: Sicilian Najdorf: 6 Be2.} 14. Rae1 {[%emt 0:01:09] [#]} a4 $146 {[%emt 0:05:26]} ({Predecessor:} 14... b6 15. Kh1 Nc5 16. Nxc5 dxc5 17. Bf3 Bd6 18. Bg5 h6 19. Bh4 Re8 20. Qb1 g6 21. Bd1 {0-1 Nasuta,G (2546)-Sjugirov,S (2712) Titled Tuesday intern op 13th Dec Late blitz 2022 (6)}) 15. Nd2 {[%emt 0:22:01][%cal Bb3d2,Bd2b1,Bb1c3][%mdl 32]} Nc5 {[%emt 0:00:59] White has an edge.} 16. Qa3 {[%emt 0:01:20]} Nfd7 {[%emt 0:12:42]} 17. Nb1 {[%emt 0:19:44] [#]} b5 {[%emt 0:04:24]} 18. cxb5 $14 {[%emt 0:00:53]} Bg5 {[%emt 0:01:56]} 19. Bxc5 {[%emt 0:07:54]} (19. Bxg5 {is interesting.} Qxg5 20. Qe3 Qg6 21. f4) 19... Nxc5 {[%emt 0:00:12]} 20. Nc3 {[%emt 0:00:10]} Ra8 {[%emt 0:10:35]} 21. Bd1 {[%emt 0:08:49][%cal Oc3e4]} Bd2 {[%emt 0:07:43]} 22. Re2 {[%emt 0:07:37]} Bxc3 {[%emt 0:00:05]} 23. bxc3 {[%emt 0:00:04]} ({Much worse is} 23. Qxc3 Qb6 $15) 23... Qb6 {[%emt 0:00:19]} 24. c4 {[%emt 0:00:13]} f5 {[%emt 0:00:59][%cal Bf7f5,Bf5f4][%mdl 32]} 25. Bc2 {[%emt 0:01:59]} Ra7 {[%emt 0:10:38]} 26. Kh1 {[%emt 0:00:25]} f4 {[%emt 0:05:22]} 27. Qh3 {[%emt 0:03:00]} g6 {[%emt 0:00:42]} 28. Rg1 {[%emt 0:09:10]} Raf7 {[%emt 0:05:59]} 29. f3 {[%emt 0:05:36]} (29. Qf3 $16) 29... Qa5 $1 $11 {[%emt 0:03:57] aiming for ...Qc3. The position is equal.} 30. g3 {[%emt 0:00:37]} fxg3 {[%emt 0:03:13]} 31. Rxg3 {[%emt 0:00:03][%cal Oc2g6] Bxg6! is the strong threat.} Rg7 {[%emt 0:01:30]} 32. Reg2 {[%emt 0:00:52][%cal Be2g2,Bg2g1,Bg1g6][%mdl 32]} Qb4 {[%emt 0:10:08]} 33. Rg1 {[%emt 0:02:12]} Qxc4 {[%emt 0:03:43]} 34. Bxg6 {[%emt 0:00:11][%mdl 64] [#] Demolition} hxg6 {[%emt 0:00:12]} 35. Rxg6 {[%emt 0:00:02]} Rxg6 {[%emt 0:00:56]} 36. Rxg6+ {[%emt 0:00:04]} Kf7 {[%emt 0:00:08]} 37. Qf5+ {[%emt 0:02:22]} (37. Rxd6 $2 {perishes.} Qc1+ 38. Kg2 Rg8+ $19) ({Wrong is} 37. Qh5 $2 Ke7 38. Qg5+ Ke8 $19) 37... Ke8 {[%emt 0:00:14]} 38. Qc8+ {[%emt 0:00:26]} Kf7 {[%emt 0:00:07]} 39. Qf5+ {[%emt 0:00:09]} Ke8 {[%emt 0:00:06]} 40. Qc8+ {[%emt 0:00:23] Weighted Error Value: White=0.08 (flawless) /Black=0.08 (flawless)} 1/2-1/2

[Event "51st Rilton Cup 2023-24"]
[Site "Stockholm"]
[Date "2023.12.30"]
[Round "4.3"]
[White "Raja Rithvik R"]
[Black "Sokolovsky, Yahli"]
[Result "1/2-1/2"]
[ECO "B52"]
[WhiteElo "2500"]
[BlackElo "2443"]
[Annotator "TA"]
[PlyCount "51"]
[EventDate "2023.12.27"]
[EventType "swiss"]
[EventCountry "SWE"]
[SourceTitle "playchess.com"]
[Source "ChessBase"]
[SourceQuality "1"]
[TimeControl "40/5400+30:1800+30"]

{[%evp 9,51,2,30,22,22,22,29,15,26,14,12,0,23,15,27,14,25,13,27,39,34,21,28,29,41,27,28,46,56,7,18,8,64,12,24,0,16,11,0,-8,5,0,3,0]} 1. e4 {[%emt 0:03:49]} c5 {[%emt 0:00:06]} 2. Nf3 {[%emt 0:00:11]} d6 {[%emt 0:00:05]} 3. Bb5+ {[%emt 0:00:06]} Bd7 {[%emt 0:00:05]} 4. c4 {[%emt 0:00:04]} Nf6 {[%emt 0:01:48]} 5. Nc3 {[%emt 0:01:32]} g6 {[%emt 0:00:06]} (5... a6 $5 {[%cal Ra6b5]} 6. Bxd7+ Nbxd7 $11) 6. Bxd7+ {[%emt 0:00:34] B52: Sicilian: Moscow Variation with 3...Bd7.} Nbxd7 {[%emt 0:03:14]} 7. d3 {[%emt 0:00:05]} Bg7 {[%emt 0:00:55]} 8. h3 {[%emt 0:00:05] White has an edge.} O-O {[%emt 0:02:17]} 9. Be3 {[%emt 0:00:04]} a6 {[%emt 0:01:37]} 10. Qd2 {[%emt 0:05:32] [#]} Re8 $146 {[%emt 0:10:47][%cal Ob7b5]} ({Predecessor:} 10... Qa5 11. O-O b5 12. Rac1 Rfd8 13. b3 Nb8 14. Nh2 Nc6 15. f4 bxc4 16. dxc4 Nh5 {0-1 Fecker,N (2382)-Chinguun,S (2269) Wch U18 Mamaia 2022 (5)}) 11. O-O {[%emt 0:03:32]} Rb8 {[%emt 0:07:52]} 12. Rab1 {[%emt 0:03:39]} Qa5 {[%emt 0:12:57]} 13. a4 {[%emt 0:21:53]} Rbd8 {[%emt 0:02:02]} 14. d4 {[%emt 0:13:14]} cxd4 {[%emt 0:09:43]} 15. Nxd4 {[%emt 0:02:34]} ({Of course not} 15. Qxd4 Ng4 16. Qd2 Nxe3 17. Qxe3 Bxc3 18. Qxc3 Qxa4 $15) 15... e6 {[%emt 0:02:23]} 16. Rfd1 {[%emt 0:03:45]} Qc7 {[%emt 0:05:08]} 17. b3 {[%emt 0:01:46]} Nc5 {[%emt 0:03:49]} 18. Qc2 {[%emt 0:00:19]} b6 {[%emt 0:09:33]} 19. Nf3 {[%emt 0:11:26]} (19. Nde2 $14) 19... Qb7 {[%emt 0:02:32][%cal Rf6e4]} 20. Nd2 {[%emt 0:02:26]} Rc8 {[%emt 0:02:34]} (20... a5 $11) 21. Rbc1 {[%emt 0:07:32]} (21. e5 $1 $14 dxe5 22. Bxc5 Rxc5 23. Nde4) 21... Red8 {[%emt 0:03:04]} 22. Qb1 {[%emt 0:00:35]} Qc6 {[%emt 0:00:59] The position is equal.} 23. Bd4 {[%emt 0:04:03]} Qb7 {[%emt 0:01:55]} 24. Be3 {[%emt 0:00:56]} Qc6 {[%emt 0:00:06]} 25. Bd4 {[%emt 0:00:54]} Qb7 {[%emt 0:00:23]} 26. Be3 {[%emt 0:00:54] Weighted Error Value: White=0.10 (very precise) /Black=0.11 (very precise)} 1/2-1/2

[Event "51st Rilton Cup 2023-24"]
[Site "Stockholm"]
[Date "2023.12.30"]
[Round "4.4"]
[White "Sidhant, Mohapatra"]
[Black "Blomqvist, Erik"]
[Result "0-1"]
[ECO "C70"]
[WhiteElo "2408"]
[BlackElo "2521"]
[Annotator "TA"]
[PlyCount "104"]
[EventDate "2023.12.27"]
[EventType "swiss"]
[EventCountry "SWE"]
[SourceTitle "playchess.com"]
[Source "ChessBase"]
[SourceQuality "1"]
[TimeControl "40/5400+30:1800+30"]

{[%evp 11,104,31,34,-10,-5,2,-7,0,3,-9,0,-10,-14,0,0,0,0,-38,-37,-49,-47,-35,-26,-19,-16,-31,-29,-59,-58,-61,-46,-106,-81,-87,-84,-93,-87,-89,-71,-113,-112,-113,-94,-117,-89,-112,-87,-87,-114,-101,-101,-124,-176,-169,-181,-119,-96,-297,-324,-300,-310,-327,-356,-351,-345,-319,-319,-358,-130,-102,-41,-49,-61,-185,-176,-606,-576,-1174,-1112,-2103,-4845,-1661,-1156,-29973,-29974,-29977,-29978,-29979,-29979,-29979,-29980,-29980,-29981,-29980,-29981]} 1. e4 {[%emt 0:02:41]} e5 {[%emt 0:00:07]} 2. Nf3 {[%emt 0:00:48]} Nc6 {[%emt 0:00:08]} 3. Bb5 {[%emt 0:00:07]} a6 {[%emt 0:00:07]} 4. Ba4 {[%emt 0:00:04]} f5 {[%emt 0:00:30]} 5. d3 {[%emt 0:03:30]} fxe4 {[%emt 0:00:49]} 6. dxe4 {[%emt 0:00:06]} Nf6 {[%emt 0:00:22]} 7. Nc3 {[%emt 0:01:32] C70: Ruy Lopez: 3...a6 4 Ba4, Norwegian and Delayed Schliemann.} (7. O-O $5 {[%cal Ra4c6]}) 7... Bb4 {[%emt 0:02:39]} 8. O-O {[%emt 0:05:28]} Bxc3 {[%emt 0:02:38]} 9. bxc3 {[%emt 0:00:04] The position is equal.} O-O {[%emt 0:02:47] [#]} 10. Bxc6 $146 {[%emt 0:04:26]} ({Predecessor:} 10. Qd3 d6 11. c4 Bd7 12. c5 dxc5 13. Qc4+ Kh8 14. Qxc5 Nxe4 15. Qe3 Nd6 16. Bxc6 Bxc6 17. Nxe5 {½-½ El Jawich,A (2238)-Raetsky,A (2394) Beirut op 10th 2019 (8)}) 10... bxc6 {[%emt 0:01:52]} 11. Nxe5 {[%emt 0:00:39]} Qe8 {[%emt 0:03:22]} 12. Nd3 {[%emt 0:03:55]} Qxe4 {[%emt 0:01:23]} 13. Re1 {[%emt 0:00:24]} Qh4 {[%emt 0:12:33]} 14. f3 {[%emt 0:14:30] Prevents Ng4} (14. Qf3 $5 {[%cal Rc1a3]}) 14... Qc4 {[%emt 0:07:35]} 15. Bd2 {[%emt 0:01:50]} d6 {[%emt 0:11:44]} 16. Qb1 {[%emt 0:06:15]} a5 {[%emt 0:06:37][%cal Ba6a5,Ba5a4][%mdl 32]} 17. Qb3 {[%emt 0:00:53]} Ba6 {[%emt 0:00:37]} 18. Re7 {[%emt 0:05:28]} (18. Qxc4+ {simplifies} Bxc4 19. Nb2 Bf7 20. c4) 18... Rf7 {[%emt 0:03:05]} 19. Rae1 {[%emt 0:06:24]} a4 {[%emt 0:06:35]} 20. Qb2 {[%emt 0:03:03]} c5 {[%emt 0:13:10]} 21. Rxf7 {[%emt 0:03:13]} (21. R7e2 $15) 21... Kxf7 {[%emt 0:01:32]} 22. Bg5 {[%emt 0:00:18]} Re8 {[%emt 0:04:27]} 23. Rxe8 {[%emt 0:07:57]} Nxe8 {[%emt 0:00:03]} 24. a3 {[%emt 0:00:06]} Qd5 {[%emt 0:03:49]} 25. Qc1 {[%emt 0:00:03]} Bxd3 {[%emt 0:04:12]} 26. cxd3 {[%emt 0:00:05]} Qxd3 $17 {[%emt 0:00:17][%mdl 4096] Endgame KQB-KQN} 27. Qf4+ {[%emt 0:00:04]} Nf6 {[%emt 0:01:58]} 28. Bxf6 {[%emt 0:00:52]} Qd1+ {[%emt 0:01:06]} ({Much weaker is} 28... gxf6 $6 29. Qxa4 h5 30. Qd7+ Kg6 31. Qe8+ Kh6 32. Qf8+ Kg6 33. Qe8+ Kh6 34. Qf8+ Kg6 35. Qe8+ $11) 29. Kf2 {[%emt 0:00:04]} Qc2+ {[%emt 0:00:38]} ({Don't play} 29... gxf6 $6 30. Qf5 $11) 30. Kg3 {[%emt 0:02:59]} gxf6 {[%emt 0:00:05] KQ-KQ} 31. Qc4+ {[%emt 0:00:02]} Ke7 {[%emt 0:02:38]} 32. h4 {[%emt 0:00:05]} h5 {[%emt 0:03:34]} 33. Kh2 {[%emt 0:01:54]} (33. Qg8 $19) 33... f5 {[%emt 0:02:17]} 34. Qg8 $2 {[%emt 0:01:11]} (34. Kg3 $17 {is a better defense.}) 34... Qxc3 $19 {[%emt 0:00:23][%cal Oc5c4]} 35. Qh7+ {[%emt 0:00:04] [#]} Ke6 $1 {[%emt 0:00:21]} 36. Qxh5 {[%emt 0:00:07] [#]} Qe5+ $1 {[%emt 0:00:39]} ({Worse is} 36... Qxa3 37. Qg6+ Ke7 38. Qg7+ Ke8 39. Qg6+ Kf8 40. Qf6+ Kg8 41. Qe6+ Kh8 42. Qh6+ Kg8 43. Qg6+ Kh8 44. Qh6+ Kg8 45. Qg6+ Kh8 46. Qh6+ $11) 37. Kh3 {[%emt 0:00:24]} c4 {[%emt 0:00:14]} 38. Qe8+ {[%emt 0:00:29]} Kd5 {[%emt 0:00:27]} 39. Qxa4 {[%emt 0:02:29]} f4 $2 {[%emt 0:01:06]} (39... c3 $19 40. Qb3+ Kd4 41. Qd1+ Kc5) 40. Kg4 $17 {[%emt 0:03:39]} Qg7+ {[%emt 0:01:33]} ({Better is} 40... Qe2 $17 {Strongly threatening ...c3.} 41. Qa8+ c6) 41. Kxf4 $15 {[%emt 0:30:55]} Qxg2 {[%emt 0:02:40] White must now prevent ...Qe2.} 42. Qa5+ {[%emt 0:00:00]} ({White should try} 42. Ke3 $15 Qg1+ 43. Ke2 Qh2+ 44. Kd1) 42... Kd4 $19 {[%emt 0:06:41] ...c3 would be deadly.} 43. Qxc7 $2 {[%emt 0:00:00]} (43. Qe1) 43... Qh2+ {[%emt 0:02:46]} 44. Kg4 {[%emt 0:00:00]} c3 {[%emt 0:01:55][%cal Bc4c3,Bc3c2][%mdl 32] ...c2 is the strong threat.} 45. Qb6+ {[%emt 0:00:00]} Kd3 {[%emt 0:00:40]} 46. Qb5+ {[%emt 0:00:00]} Kd2 {[%emt 0:01:25]} 47. h5 {[%emt 0:00:00]} Qg2+ {[%emt 0:08:36] Black mates.} 48. Kf4 {[%emt 0:00:00]} c2 {[%emt 0:00:45]} 49. Qb2 {[%emt 0:00:00]} Kd1 {[%emt 0:02:04]} 50. Qb3 {[%emt 0:00:00]} Qd2+ {[%emt 0:00:26]} 51. Kg3 {[%emt 0:00:00]} Ke1 {[%emt 0:00:48]} 52. Qe6+ {[%emt 0:00:00]} Kf1 {[%emt 0:00:18] Weighted Error Value: White=0.61/Black=0.07 (flawless)} 0-1

[Event "51st Rilton Cup 2023-24"]
[Site "Stockholm"]
[Date "2023.12.30"]
[Round "4.5"]
[White "Sivuk, Vitaly"]
[Black "Rakesh Kumar Jena"]
[Result "1-0"]
[ECO "D32"]
[WhiteElo "2490"]
[BlackElo "2335"]
[Annotator "TA"]
[PlyCount "47"]
[EventDate "2023.12.27"]
[EventType "swiss"]
[EventCountry "SWE"]
[SourceTitle "playchess.com"]
[Source "ChessBase"]
[SourceQuality "1"]
[TimeControl "40/5400+30:1800+30"]

{[%evp 23,47,47,51,29,90,20,54,45,71,62,102,120,200,207,287,274,275,272,312,212,218,205,366,368,394,397]} 1. d4 {[%emt 0:05:22]} d5 {[%emt 0:00:05]} 2. c4 {[%emt 0:00:08]} e6 {[%emt 0:00:06]} 3. Nc3 {[%emt 0:00:10]} c5 {[%emt 0:00:06]} 4. cxd5 {[%emt 0:00:22]} cxd4 {[%emt 0:00:06]} 5. Qa4+ {[%emt 0:00:10]} Bd7 {[%emt 0:00:07]} 6. Qxd4 {[%emt 0:00:09]} exd5 {[%emt 0:00:04]} 7. Qxd5 {[%emt 0:00:13]} Nf6 {[%emt 0:00:06]} 8. Qd1 {[%emt 0:00:09]} Bc5 {[%emt 0:00:06]} 9. Nf3 {[%emt 0:00:36]} O-O {[%emt 0:00:07]} 10. e3 {[%emt 0:00:05]} Qe7 {[%emt 0:00:05]} 11. Be2 {[%emt 0:00:09]} Nc6 {[%emt 0:00:07]} 12. O-O {[%emt 0:00:11]} Rfd8 {[%emt 0:00:04]} 13. Qb3 {[%emt 0:03:04] [#] D32: Tarrasch Defence: Sidelines and lines without g3.} Ne5 $146 {[%emt 0:28:07]} (13... a6 $11 {remains equal.}) ({Predecessor:} 13... Bf5 14. Bd2 a6 15. Na4 Be6 16. Qc2 Ba7 17. Rfd1 Rac8 18. Nc3 Nb4 19. Qb1 g6 20. Ne4 Nc2 21. Nxf6+ Qxf6 {1-0 Ding,L (2799)-Grischuk,A (2776) FTX Crypto Cup Prelim rapid 2021 (5)}) 14. Nd4 {[%emt 0:11:29]} ({White should play} 14. Qxb7 $16 Rab8 15. Qa6) 14... Rac8 {[%emt 0:17:21]} 15. Rd1 {[%emt 0:20:06] White is slightly better.} Bb6 {[%emt 0:10:40]} 16. Bd2 {[%emt 0:06:23]} Nfg4 {[%emt 0:06:38]} 17. Be1 {[%emt 0:03:08]} Qg5 {[%emt 0:10:03] [#]} (17... Qh4 $2 18. h3 $18) (17... Nf6 $16) 18. Nd5 $1 $18 {[%emt 0:11:12] Black must now prevent f4.} ({Don't play} 18. Nf3 $6 Nxf3+ 19. Bxf3 h5 $14) 18... Ba4 {[%emt 0:04:40]} 19. Qxa4 {[%emt 0:01:06]} Rxd5 {[%emt 0:00:03]} 20. Rac1 {[%emt 0:03:59]} Rf8 {[%emt 0:01:20][%cal Og4e3]} 21. Nf3 {[%emt 0:03:38][%mdl 64] Discovered Attack} Rxd1 {[%emt 0:03:24]} 22. Rxd1 {[%emt 0:00:34]} (22. Nxg5 $2 Rxc1 23. Qb4 Nxe3 24. fxe3 Bxe3+ 25. Kf1 Bxg5 $19) 22... Qh6 {[%emt 0:04:18] [#]} (22... Qf5 {was worth a try.} 23. a3 Nf6) 23. h3 {[%emt 0:03:55]} Nxe3 {[%emt 0:00:17]} 24. Bd2 {[%emt 0:01:49][%mdl 64] Pin.   Weighted Error Value: White=0.23 (precise) /Black=0.51} ({Not} 24. fxe3 Qxe3+ 25. Kh2 (25. Kf1 $2 Nxf3 26. Bxf3 Re8 $19) 25... Qxe2 26. Nxe5 Bc7 $17) ({Less strong is} 24. Nxe5 Nxd1 25. Bxd1 Qc1 $18) 1-0